[Event "Titled Tuesday Blitz April 4 Early 2023"]
[White "Bruedigam, Martin"]
[Black "Romero Ruscalleda, Josep"]
[WhiteFideId "24608033"]
[BlackFideId "2231859"]
[WhiteElo "2331"]
[BlackElo "2183"]
[Result "1-0"]
[Round "05"]
[TimeControl "180+2"]
[Date "2023.04.04"]
[WhiteClock "0:00:16"]
[BlackClock "0:00:05"]

1. d4 {[%clk 0:03:00]}  g6 {[%clk 0:03:00]} 2. e4 {[%clk 0:02:59]}  Bg7 {[%clk 0:03:00]} 3. Nf3 {[%clk 0:02:59]}  d6 {[%clk 0:03:00]} 4. Bc4 {[%clk 0:03:00]}  Nf6 {[%clk 0:03:00]} 5. Qe2 {[%clk 0:03:00]}  O-O {[%clk 0:03:00]} 6. e5 {[%clk 0:03:01]}  dxe5 {[%clk 0:03:00]} 7. dxe5 {[%clk 0:03:01]}  Nd5 {[%clk 0:03:00]} 8. O-O {[%clk 0:03:01]}  c6 {[%clk 0:03:00]} 9. h3 {[%clk 0:03:00]}  Be6 {[%clk 0:02:56]} 10. Bb3 {[%clk 0:02:56]}  Nd7 {[%clk 0:02:50]} 11. Re1 {[%clk 0:02:55]}  Nc5 {[%clk 0:02:47]} 12. Bg5 {[%clk 0:02:42]}  Nxb3 {[%clk 0:02:41]} 13. axb3 {[%clk 0:02:43]}  Nc7 {[%clk 0:02:35]} 14. Nbd2 {[%clk 0:02:40]}  f6 {[%clk 0:02:31]} 15. Bf4 {[%clk 0:02:33]}  Nd5 {[%clk 0:02:27]} 16. Bg3 {[%clk 0:02:25]}  f5 {[%clk 0:02:23]} 17. c3 {[%clk 0:02:20]}  h6 {[%clk 0:02:11]} 18. Nd4 {[%clk 0:02:19]}  Qd7 {[%clk 0:02:09]} 19. f4 {[%clk 0:02:16]}  c5 {[%clk 0:02:01]} 20. Nxe6 {[%clk 0:02:13]}  Qxe6 {[%clk 0:02:01]} 21. Qc4 {[%clk 0:02:05]}  b6 {[%clk 0:01:43]} 22. Ra6 {[%clk 0:01:59]}  Rfd8 {[%clk 0:01:39]} 23. Rea1 {[%clk 0:01:44]}  Nc7 {[%clk 0:01:33]} 24. Qxe6+ {[%clk 0:01:43]}  Nxe6 {[%clk 0:01:33]} 25. Nc4 {[%clk 0:01:43]}  Rab8 {[%clk 0:01:16]} 26. Rxa7 {[%clk 0:01:39]}  Rd3 {[%clk 0:01:11]} 27. Rxe7 {[%clk 0:01:25]}  Nd8 {[%clk 0:01:00]} 28. Bf2 {[%clk 0:01:20]}  g5 {[%clk 0:00:55]} 29. Raa7 {[%clk 0:01:16]}  Bf8 {[%clk 0:00:53]} 30. Red7 {[%clk 0:01:09]}  Rxd7 {[%clk 0:00:48]} 31. Rxd7 {[%clk 0:01:10]}  gxf4 {[%clk 0:00:46]} 32. Nxb6 {[%clk 0:00:41]}  Ne6 {[%clk 0:00:32]} 33. Nd5 {[%clk 0:00:40]}  Bg7 {[%clk 0:00:22]} 34. Re7 {[%clk 0:00:38]}  Ng5 {[%clk 0:00:17]} 35. Bxc5 {[%clk 0:00:31]}  Rxb3 {[%clk 0:00:17]} 36. Ba3 {[%clk 0:00:31]}  Rb5 {[%clk 0:00:16]} 37. c4 {[%clk 0:00:28]}  Rb3 {[%clk 0:00:14]} 38. Nf6+ {[%clk 0:00:20]}  Bxf6 {[%clk 0:00:14]} 39. exf6 {[%clk 0:00:21]}  f3 {[%clk 0:00:14]} 40. Rg7+ {[%clk 0:00:17]}  Kh8 {[%clk 0:00:13]} 41. f7 {[%clk 0:00:17]}  Nxf7 {[%clk 0:00:05]} 42. Rxf7 {[%clk 0:00:17]}  fxg2 {[%clk 0:00:06]} 43. Kxg2 {[%clk 0:00:17]}  Rd3 {[%clk 0:00:05]} 44. Rxf5 {[%clk 0:00:17]}  Rd2+ {[%clk 0:00:06]} 45. Kg3 {[%clk 0:00:17]}  Kg7 {[%clk 0:00:05]} 46. Rf3 {[%clk 0:00:16]} 1-0


[Site "https://www.chess.com"]

[Event "Titled Tuesday Blitz April 4 Early 2023"]
[White "Arat, Ufuk Sezen"]
[Black "TheKnightOfBosnia"]
[WhiteFideId "6309089"]
[WhiteElo "2289"]
[BlackElo "2483"]
[Result "0-1"]
[Round "05"]
[TimeControl "180+2"]
[Date "2023.04.04"]
[WhiteClock "0:00:11"]
[BlackClock "0:00:08"]

1. e4 {[%clk 0:02:55]}  e5 {[%clk 0:02:59]} 2. Nf3 {[%clk 0:02:55]}  Nc6 {[%clk 0:03:00]} 3. c3 {[%clk 0:02:56]}  Nf6 {[%clk 0:02:58]} 4. d4 {[%clk 0:02:56]}  d5 {[%clk 0:02:53]} 5. Bb5 {[%clk 0:02:54]}  exd4 {[%clk 0:02:49]} 6. e5 {[%clk 0:02:54]}  Nd7 {[%clk 0:02:46]} 7. cxd4 {[%clk 0:02:50]}  Bb4+ {[%clk 0:02:42]} 8. Nc3 {[%clk 0:02:50]}  Ne7 {[%clk 0:02:38]} 9. Bd3 {[%clk 0:02:38]}  c5 {[%clk 0:02:26]} 10. O-O {[%clk 0:02:16]}  cxd4 {[%clk 0:02:22]} 11. Nxd4 {[%clk 0:02:16]}  Bxc3 {[%clk 0:02:07]} 12. bxc3 {[%clk 0:02:15]}  Nxe5 {[%clk 0:02:08]} 13. Bb5+ {[%clk 0:02:00]}  Bd7 {[%clk 0:02:06]} 14. Re1 {[%clk 0:01:55]}  N5g6 {[%clk 0:02:02]} 15. Ba3 {[%clk 0:01:33]}  O-O {[%clk 0:01:55]} 16. Bxd7 {[%clk 0:01:22]}  Qxd7 {[%clk 0:01:55]} 17. h4 {[%clk 0:01:21]}  Rfe8 {[%clk 0:01:49]} 18. h5 {[%clk 0:01:21]}  Nf8 {[%clk 0:01:35]} 19. Rxe7 {[%clk 0:01:01]}  Rxe7 {[%clk 0:01:34]} 20. Bxe7 {[%clk 0:00:55]}  Qxe7 {[%clk 0:01:34]} 21. Nf5 {[%clk 0:00:54]}  Qe5 {[%clk 0:01:33]} 22. Qxd5 {[%clk 0:00:52]}  Qxc3 {[%clk 0:01:25]} 23. Rd1 {[%clk 0:00:51]}  Re8 {[%clk 0:00:58]} 24. Rd3 {[%clk 0:00:26]}  Qa1+ {[%clk 0:00:51]} 25. Kh2 {[%clk 0:00:25]}  Qe5+ {[%clk 0:00:50]} 26. Qxe5 {[%clk 0:00:26]}  Rxe5 {[%clk 0:00:51]} 27. g4 {[%clk 0:00:26]}  g6 {[%clk 0:00:48]} 28. Ng3 {[%clk 0:00:20]}  Kg7 {[%clk 0:00:40]} 29. Rd8 {[%clk 0:00:19]}  b6 {[%clk 0:00:31]} 30. h6+ {[%clk 0:00:18]}  Kg8 {[%clk 0:00:28]} 31. f4 {[%clk 0:00:15]}  Ra5 {[%clk 0:00:27]} 32. Ne4 {[%clk 0:00:15]}  Rxa2+ {[%clk 0:00:26]} 33. Kh3 {[%clk 0:00:15]}  f5 {[%clk 0:00:26]} 34. gxf5 {[%clk 0:00:12]}  gxf5 {[%clk 0:00:26]} 35. Ng5 {[%clk 0:00:09]}  Re2 {[%clk 0:00:21]} 36. Ra8 {[%clk 0:00:08]}  Re7 {[%clk 0:00:20]} 37. Kg3 {[%clk 0:00:08]}  b5 {[%clk 0:00:15]} 38. Rb8 {[%clk 0:00:07]}  a6 {[%clk 0:00:16]} 39. Rb6 {[%clk 0:00:07]}  Ra7 {[%clk 0:00:14]} 40. Rb8 {[%clk 0:00:07]}  Re7 {[%clk 0:00:12]} 41. Rb6 {[%clk 0:00:07]}  Ra7 {[%clk 0:00:10]} 42. Kh4 {[%clk 0:00:07]}  Nd7 {[%clk 0:00:08]} 43. Re6 {[%clk 0:00:06]}  Kf8 {[%clk 0:00:07]} 44. Rd6 {[%clk 0:00:05]}  Ke7 {[%clk 0:00:07]} 45. Re6+ {[%clk 0:00:05]}  Kd8 {[%clk 0:00:06]} 46. Nf3 {[%clk 0:00:05]}  Nf8 {[%clk 0:00:06]} 47. Rd6+ {[%clk 0:00:05]}  Ke7 {[%clk 0:00:07]} 48. Rb6 {[%clk 0:00:05]}  Ne6 {[%clk 0:00:07]} 49. Ng5 {[%clk 0:00:04]}  Nxg5 {[%clk 0:00:07]} 50. Kxg5 {[%clk 0:00:04]}  a5 {[%clk 0:00:05]} 51. Kxf5 {[%clk 0:00:05]}  a4 {[%clk 0:00:05]} 52. Rxb5 {[%clk 0:00:06]}  a3 {[%clk 0:00:06]} 53. Rb1 {[%clk 0:00:06]}  a2 {[%clk 0:00:06]} 54. Ra1 {[%clk 0:00:07]}  Ra5+ {[%clk 0:00:07]} 55. Kg4 {[%clk 0:00:07]}  Kf6 {[%clk 0:00:07]} 56. Kg3 {[%clk 0:00:07]}  Kf5 {[%clk 0:00:07]} 57. Kf3 {[%clk 0:00:08]}  Ra3+ {[%clk 0:00:07]} 58. Kf2 {[%clk 0:00:07]}  Kxf4 {[%clk 0:00:07]} 59. Kg2 {[%clk 0:00:08]}  Kg5 {[%clk 0:00:08]} 60. Kh2 {[%clk 0:00:08]}  Kxh6 {[%clk 0:00:08]} 61. Kg2 {[%clk 0:00:09]}  Kg5 {[%clk 0:00:08]} 62. Kh2 {[%clk 0:00:09]}  Kf4 {[%clk 0:00:09]} 63. Kg2 {[%clk 0:00:10]}  Ke4 {[%clk 0:00:08]} 64. Kf2 {[%clk 0:00:10]}  Kd3 {[%clk 0:00:08]} 65. Ke1 {[%clk 0:00:11]}  Kc2 {[%clk 0:00:08]} 0-1


[Site "https://www.chess.com"]

[Event "Titled Tuesday Blitz April 4 Early 2023"]
[White "Fajdetic, Hrvoje"]
[Black "Miszler, Levente"]
[WhiteFideId "14501945"]
[BlackFideId "763276"]
[WhiteElo "2185"]
[BlackElo "2176"]
[Result "0-1"]
[Round "05"]
[TimeControl "180+2"]
[Date "2023.04.04"]
[WhiteClock "0:00:05"]
[BlackClock "0:00:24"]

1. f4 {[%clk 0:02:52]}  Nf6 {[%clk 0:02:56]} 2. Nf3 {[%clk 0:02:51]}  c5 {[%clk 0:02:56]} 3. d3 {[%clk 0:02:51]}  Nc6 {[%clk 0:02:57]} 4. e4 {[%clk 0:02:51]}  d5 {[%clk 0:02:57]} 5. e5 {[%clk 0:02:51]}  Nd7 {[%clk 0:02:57]} 6. c3 {[%clk 0:02:51]}  e6 {[%clk 0:02:57]} 7. d4 {[%clk 0:02:51]}  f6 {[%clk 0:02:46]} 8. Bd3 {[%clk 0:02:48]}  Be7 {[%clk 0:02:45]} 9. O-O {[%clk 0:02:47]}  O-O {[%clk 0:02:45]} 10. g3 {[%clk 0:02:38]}  Qb6 {[%clk 0:02:45]} 11. Kg2 {[%clk 0:02:34]}  f5 {[%clk 0:02:41]} 12. Bc2 {[%clk 0:02:29]}  Qc7 {[%clk 0:02:34]} 13. h4 {[%clk 0:02:24]}  b5 {[%clk 0:02:31]} 14. Ng5 {[%clk 0:02:22]}  Bxg5 {[%clk 0:02:29]} 15. hxg5 {[%clk 0:02:22]}  g6 {[%clk 0:02:30]} 16. Rh1 {[%clk 0:02:20]}  Rf7 {[%clk 0:02:30]} 17. g4 {[%clk 0:02:13]}  cxd4 {[%clk 0:02:30]} 18. cxd4 {[%clk 0:02:12]}  Nxd4 {[%clk 0:02:30]} 19. Bd3 {[%clk 0:01:56]}  fxg4 {[%clk 0:02:25]} 20. Qxg4 {[%clk 0:01:51]}  Nc5 {[%clk 0:02:22]} 21. Bxg6 {[%clk 0:01:25]}  hxg6 {[%clk 0:02:22]} 22. Rh6 {[%clk 0:01:25]}  Nf5 {[%clk 0:02:17]} 23. Rxg6+ {[%clk 0:01:23]}  Rg7 {[%clk 0:02:17]} 24. Rxg7+ {[%clk 0:01:12]}  Kxg7 {[%clk 0:02:17]} 25. Nc3 {[%clk 0:01:13]}  Nd3 {[%clk 0:02:14]} 26. Bd2 {[%clk 0:01:04]}  Qc4 {[%clk 0:02:09]} 27. Rh1 {[%clk 0:01:01]}  Qd4 {[%clk 0:01:32]} 28. Qf3 {[%clk 0:00:33]}  Bb7 {[%clk 0:01:20]} 29. Nxb5 {[%clk 0:00:25]}  Qxb2 {[%clk 0:01:17]} 30. Qxd3 {[%clk 0:00:22]}  Ba6 {[%clk 0:01:09]} 31. a4 {[%clk 0:00:18]}  Rc8 {[%clk 0:00:57]} 32. Kf3 {[%clk 0:00:14]}  Rc2 {[%clk 0:00:48]} 33. Be3 {[%clk 0:00:12]}  d4 {[%clk 0:00:38]} 34. Bg1 {[%clk 0:00:10]}  Bb7+ {[%clk 0:00:37]} 35. Kg4 {[%clk 0:00:06]}  Rg2+ {[%clk 0:00:32]} 36. Kh5 {[%clk 0:00:06]}  Rxg1 {[%clk 0:00:25]} 37. Nd6 {[%clk 0:00:04]}  Rxh1+ {[%clk 0:00:24]} 38. Kg4 {[%clk 0:00:05]}  Qg2+ {[%clk 0:00:24]} 0-1


[Site "https://www.chess.com"]

[Event "Titled Tuesday Blitz April 4 Early 2023"]
[White "Kornyukov, Alexey"]
[Black "Goltseva, Ekaterina"]
[WhiteFideId "4150457"]
[BlackFideId "24173770"]
[WhiteElo "2352"]
[BlackElo "2200"]
[Result "0-1"]
[Round "05"]
[TimeControl "180+2"]
[Date "2023.04.04"]
[WhiteClock "0:00:20"]
[BlackClock "0:00:10"]

1. e4 {[%clk 0:03:00]}  e6 {[%clk 0:02:59]} 2. d4 {[%clk 0:02:59]}  d5 {[%clk 0:02:59]} 3. exd5 {[%clk 0:02:57]}  exd5 {[%clk 0:02:58]} 4. c4 {[%clk 0:02:56]}  dxc4 {[%clk 0:02:56]} 5. Bxc4 {[%clk 0:02:55]}  Bd6 {[%clk 0:02:56]} 6. Nf3 {[%clk 0:02:52]}  Nf6 {[%clk 0:02:54]} 7. Bg5 {[%clk 0:02:48]}  O-O {[%clk 0:02:51]} 8. O-O {[%clk 0:02:46]}  Bg4 {[%clk 0:02:47]} 9. Nc3 {[%clk 0:02:45]}  c6 {[%clk 0:02:36]} 10. h3 {[%clk 0:02:43]}  Bh5 {[%clk 0:02:35]} 11. Ne4 {[%clk 0:02:29]}  Be7 {[%clk 0:02:34]} 12. Ng3 {[%clk 0:02:22]}  Bg6 {[%clk 0:02:28]} 13. Ne5 {[%clk 0:02:19]}  Nd5 {[%clk 0:02:18]} 14. Bxe7 {[%clk 0:02:15]}  Qxe7 {[%clk 0:02:16]} 15. f4 {[%clk 0:02:11]}  Ne3 {[%clk 0:01:54]} 16. Qe2 {[%clk 0:02:09]}  Nxf1 {[%clk 0:01:53]} 17. Qxf1 {[%clk 0:02:08]}  Bc2 {[%clk 0:01:31]} 18. Re1 {[%clk 0:02:03]}  Qd6 {[%clk 0:01:24]} 19. Nxf7 {[%clk 0:01:53]}  Qxd4+ {[%clk 0:01:20]} 20. Kh2 {[%clk 0:01:49]}  Nd7 {[%clk 0:01:03]} 21. Ng5+ {[%clk 0:01:29]}  Kh8 {[%clk 0:00:55]} 22. Ne6 {[%clk 0:01:28]}  Qd6 {[%clk 0:00:40]} 23. Nxf8 {[%clk 0:01:27]}  Rxf8 {[%clk 0:00:41]} 24. f5 {[%clk 0:01:23]}  Bxf5 {[%clk 0:00:30]} 25. Rd1 {[%clk 0:01:20]}  Qc7 {[%clk 0:00:29]} 26. Qe2 {[%clk 0:01:02]}  Nb6 {[%clk 0:00:17]} 27. Bd3 {[%clk 0:00:54]}  Bxd3 {[%clk 0:00:17]} 28. Qxd3 {[%clk 0:00:53]}  Nd5 {[%clk 0:00:17]} 29. Kh1 {[%clk 0:00:50]}  h6 {[%clk 0:00:15]} 30. Ne4 {[%clk 0:00:45]}  Qf4 {[%clk 0:00:12]} 31. Nc5 {[%clk 0:00:40]}  Ne3 {[%clk 0:00:05]} 32. Re1 {[%clk 0:00:33]}  Nxg2 {[%clk 0:00:05]} 33. Ne6 {[%clk 0:00:25]}  Nxe1 {[%clk 0:00:04]} 34. Nxf4 {[%clk 0:00:20]}  Nxd3 {[%clk 0:00:05]} 35. Nxd3 {[%clk 0:00:21]}  Rf3 {[%clk 0:00:04]} 36. Nc5 {[%clk 0:00:21]}  Rxh3+ {[%clk 0:00:05]} 37. Kg2 {[%clk 0:00:21]}  Re3 {[%clk 0:00:05]} 38. Nxb7 {[%clk 0:00:21]}  Re2+ {[%clk 0:00:06]} 39. Kf3 {[%clk 0:00:21]}  Rxb2 {[%clk 0:00:07]} 40. Nc5 {[%clk 0:00:21]}  Rxa2 {[%clk 0:00:07]} 41. Nd7 {[%clk 0:00:21]}  a5 {[%clk 0:00:08]} 42. Ne5 {[%clk 0:00:21]}  a4 {[%clk 0:00:08]} 43. Ng6+ {[%clk 0:00:22]}  Kh7 {[%clk 0:00:08]} 44. Nf8+ {[%clk 0:00:22]}  Kg8 {[%clk 0:00:09]} 45. Ng6 {[%clk 0:00:22]}  a3 {[%clk 0:00:09]} 46. Ne7+ {[%clk 0:00:23]}  Kh7 {[%clk 0:00:10]} 47. Nf5 {[%clk 0:00:22]}  Ra1 {[%clk 0:00:09]} 48. Ne7 {[%clk 0:00:22]}  a2 {[%clk 0:00:08]} 49. Ng6 {[%clk 0:00:21]}  Rf1+ {[%clk 0:00:08]} 50. Kg2 {[%clk 0:00:21]}  a1=Q {[%clk 0:00:09]} 51. Nf8+ {[%clk 0:00:21]}  Kg8 {[%clk 0:00:09]} 52. Nh7 {[%clk 0:00:21]}  Qe1 {[%clk 0:00:10]} 53. Nf6+ {[%clk 0:00:21]}  gxf6 {[%clk 0:00:10]} 54. Kh2 {[%clk 0:00:20]}  Qf2+ {[%clk 0:00:10]} 55. Kh3 {[%clk 0:00:21]}  Qf3+ {[%clk 0:00:10]} 56. Kh2 {[%clk 0:00:20]}  Rh1# {[%clk 0:00:10]} 0-1


[Site "https://www.chess.com"]

[Event "Titled Tuesday Blitz April 4 Early 2023"]
[White "Ai, Evan"]
[Black "Kleiman, Jake"]
[WhiteFideId "2094770"]
[BlackFideId "2020041"]
[WhiteElo "1963"]
[BlackElo "2597"]
[Result "0-1"]
[Round "05"]
[TimeControl "180+2"]
[Date "2023.04.04"]
[WhiteClock "0:00:06"]
[BlackClock "0:00:19"]

1. e4 {[%clk 0:02:57]}  Nf6 {[%clk 0:02:55]} 2. e5 {[%clk 0:02:56]}  Nd5 {[%clk 0:02:56]} 3. d4 {[%clk 0:02:55]}  d6 {[%clk 0:02:56]} 4. c4 {[%clk 0:02:54]}  Nb6 {[%clk 0:02:56]} 5. exd6 {[%clk 0:02:48]}  exd6 {[%clk 0:02:57]} 6. Nc3 {[%clk 0:02:48]}  Be7 {[%clk 0:02:58]} 7. Bd3 {[%clk 0:02:45]}  O-O {[%clk 0:02:59]} 8. Nge2 {[%clk 0:02:44]}  Nc6 {[%clk 0:02:59]} 9. O-O {[%clk 0:02:44]}  Bf6 {[%clk 0:02:59]} 10. Be3 {[%clk 0:02:44]}  Nb4 {[%clk 0:02:52]} 11. a3 {[%clk 0:02:30]}  Nxd3 {[%clk 0:02:37]} 12. Qxd3 {[%clk 0:02:31]}  Re8 {[%clk 0:02:35]} 13. Ng3 {[%clk 0:02:20]}  c6 {[%clk 0:02:29]} 14. Nce4 {[%clk 0:02:13]}  Be7 {[%clk 0:02:29]} 15. d5 {[%clk 0:02:09]}  cxd5 {[%clk 0:02:13]} 16. cxd5 {[%clk 0:02:09]}  Nd7 {[%clk 0:02:13]} 17. Bf4 {[%clk 0:01:50]}  Nf6 {[%clk 0:02:13]} 18. Nxf6+ {[%clk 0:01:39]}  Bxf6 {[%clk 0:02:10]} 19. Rae1 {[%clk 0:01:18]}  Rxe1 {[%clk 0:01:33]} 20. Rxe1 {[%clk 0:01:18]}  Bd7 {[%clk 0:01:33]} 21. Bxd6 {[%clk 0:01:11]}  Qb6 {[%clk 0:01:29]} 22. Ne4 {[%clk 0:00:46]}  Bxb2 {[%clk 0:01:25]} 23. Bc5 {[%clk 0:00:25]}  Qg6 {[%clk 0:01:21]} 24. Qb3 {[%clk 0:00:19]}  Be5 {[%clk 0:00:54]} 25. Qxb7 {[%clk 0:00:18]}  Rb8 {[%clk 0:00:55]} 26. Qxd7 {[%clk 0:00:17]}  Qxe4 {[%clk 0:00:55]} 27. Rf1 {[%clk 0:00:13]}  h5 {[%clk 0:00:36]} 28. d6 {[%clk 0:00:13]}  Rb1 {[%clk 0:00:32]} 29. Qe8+ {[%clk 0:00:05]}  Kh7 {[%clk 0:00:32]} 30. Qxf7 {[%clk 0:00:05]}  Rxf1+ {[%clk 0:00:19]} 31. Kxf1 {[%clk 0:00:06]}  Qd3+ {[%clk 0:00:19]} 32. Ke1 {[%clk 0:00:06]}  Bc3# {[%clk 0:00:19]} 0-1


[Site "https://www.chess.com"]

[Event "Titled Tuesday Blitz April 4 Early 2023"]
[White "Pajeken, Jakob Leon"]
[Black "Polanco Nunez, Yoel Estarling"]
[WhiteFideId "12942839"]
[BlackFideId "6401783"]
[WhiteElo "2414"]
[BlackElo "2132"]
[Result "1-0"]
[Round "05"]
[TimeControl "180+2"]
[Date "2023.04.04"]
[WhiteClock "0:00:39"]
[BlackClock "0:01:43"]

1. e3 {[%clk 0:03:00]}  d5 {[%clk 0:03:00]} 2. Nf3 {[%clk 0:02:59]}  c6 {[%clk 0:03:00]} 3. c4 {[%clk 0:02:59]}  Nf6 {[%clk 0:03:01]} 4. d4 {[%clk 0:02:59]}  e6 {[%clk 0:03:00]} 5. b3 {[%clk 0:02:59]}  Nbd7 {[%clk 0:03:00]} 6. Bb2 {[%clk 0:02:59]}  Be7 {[%clk 0:03:01]} 7. Nbd2 {[%clk 0:03:00]}  O-O {[%clk 0:03:02]} 8. Bd3 {[%clk 0:03:00]}  b6 {[%clk 0:03:01]} 9. O-O {[%clk 0:03:00]}  Bb7 {[%clk 0:03:01]} 10. Qe2 {[%clk 0:03:01]}  c5 {[%clk 0:03:00]} 11. cxd5 {[%clk 0:02:59]}  Nxd5 {[%clk 0:02:56]} 12. a3 {[%clk 0:02:58]}  N7f6 {[%clk 0:02:53]} 13. Rfd1 {[%clk 0:02:55]}  Bd6 {[%clk 0:02:42]} 14. g3 {[%clk 0:02:53]}  cxd4 {[%clk 0:02:36]} 15. Bxd4 {[%clk 0:02:41]}  Ne7 {[%clk 0:02:33]} 16. e4 {[%clk 0:02:36]}  Nc6 {[%clk 0:02:24]} 17. Bb2 {[%clk 0:02:28]}  Bc7 {[%clk 0:02:13]} 18. e5 {[%clk 0:01:58]}  Nd7 {[%clk 0:02:12]} 19. Nc4 {[%clk 0:01:51]}  Qe7 {[%clk 0:01:58]} 20. h4 {[%clk 0:01:50]}  Rfd8 {[%clk 0:01:57]} 21. Nd6 {[%clk 0:01:17]}  Bxd6 {[%clk 0:01:53]} 22. exd6 {[%clk 0:01:17]}  Qf8 {[%clk 0:01:49]} 23. Bxh7+ {[%clk 0:00:41]}  Kxh7 {[%clk 0:01:43]} 24. Ng5+ {[%clk 0:00:41]}  Kg8 {[%clk 0:01:43]} 25. Qh5 {[%clk 0:00:39]} 1-0


[Site "https://www.chess.com"]

[Event "Titled Tuesday Blitz April 4 Early 2023"]
[White "Rangel, Daniel"]
[Black "Nery Junior, Jose Antonio"]
[WhiteFideId "2124475"]
[BlackFideId "2104822"]
[WhiteElo "2256"]
[BlackElo "2197"]
[Result "1/2-1/2"]
[Round "05"]
[TimeControl "180+2"]
[Date "2023.04.04"]
[WhiteClock "0:00:06"]
[BlackClock "0:00:03"]

1. c4 {[%clk 0:02:59]}  c5 {[%clk 0:02:54]} 2. e3 {[%clk 0:02:59]}  Nf6 {[%clk 0:02:54]} 3. b3 {[%clk 0:02:59]}  d5 {[%clk 0:02:53]} 4. cxd5 {[%clk 0:02:59]}  Nxd5 {[%clk 0:02:54]} 5. Bb2 {[%clk 0:02:59]}  Nc6 {[%clk 0:02:53]} 6. f4 {[%clk 0:02:58]}  a6 {[%clk 0:02:37]} 7. Nf3 {[%clk 0:02:57]}  Bg4 {[%clk 0:02:37]} 8. Be2 {[%clk 0:02:58]}  Ndb4 {[%clk 0:02:30]} 9. O-O {[%clk 0:02:53]}  Nd3 {[%clk 0:02:30]} 10. Bc3 {[%clk 0:02:52]}  Rc8 {[%clk 0:02:02]} 11. Na3 {[%clk 0:02:20]}  b5 {[%clk 0:01:54]} 12. Qb1 {[%clk 0:02:11]}  Bf5 {[%clk 0:01:46]} 13. Ne5 {[%clk 0:01:43]}  Ncxe5 {[%clk 0:01:12]} 14. fxe5 {[%clk 0:01:22]}  Be4 {[%clk 0:00:38]} 15. Bg4 {[%clk 0:01:08]}  e6 {[%clk 0:00:31]} 16. Rf4 {[%clk 0:00:53]}  Bg6 {[%clk 0:00:25]} 17. Nc2 {[%clk 0:00:30]}  Nxf4 {[%clk 0:00:24]} 18. exf4 {[%clk 0:00:29]}  Qh4 {[%clk 0:00:20]} 19. Bf3 {[%clk 0:00:18]}  Qxf4 {[%clk 0:00:20]} 20. Bb7 {[%clk 0:00:16]}  Rd8 {[%clk 0:00:16]} 21. Bc6+ {[%clk 0:00:15]}  Ke7 {[%clk 0:00:15]} 22. b4 {[%clk 0:00:14]}  Be4 {[%clk 0:00:09]} 23. Bxe4 {[%clk 0:00:11]}  Qxe4 {[%clk 0:00:10]} 24. bxc5 {[%clk 0:00:11]}  Rc8 {[%clk 0:00:10]} 25. Ne3 {[%clk 0:00:11]}  Qxb1+ {[%clk 0:00:09]} 26. Rxb1 {[%clk 0:00:12]}  Kd7 {[%clk 0:00:10]} 27. d4 {[%clk 0:00:11]}  f6 {[%clk 0:00:09]} 28. Ng4 {[%clk 0:00:10]}  Be7 {[%clk 0:00:09]} 29. Rd1 {[%clk 0:00:10]}  h5 {[%clk 0:00:09]} 30. Ne3 {[%clk 0:00:10]}  g5 {[%clk 0:00:09]} 31. Bb4 {[%clk 0:00:08]}  Kc6 {[%clk 0:00:08]} 32. d5+ {[%clk 0:00:07]}  exd5 {[%clk 0:00:08]} 33. Nxd5 {[%clk 0:00:07]}  Bxc5+ {[%clk 0:00:08]} 34. Bxc5 {[%clk 0:00:07]}  Kxc5 {[%clk 0:00:09]} 35. Nxf6 {[%clk 0:00:08]}  Rhd8 {[%clk 0:00:08]} 36. Re1 {[%clk 0:00:07]}  Kb6 {[%clk 0:00:08]} 37. e6 {[%clk 0:00:07]}  Re8 {[%clk 0:00:07]} 38. Nxe8 {[%clk 0:00:07]}  Rxe8 {[%clk 0:00:08]} 39. Re5 {[%clk 0:00:07]}  g4 {[%clk 0:00:07]} 40. Kf2 {[%clk 0:00:07]}  Kc6 {[%clk 0:00:06]} 41. Re2 {[%clk 0:00:04]}  Kd6 {[%clk 0:00:06]} 42. Kg3 {[%clk 0:00:04]}  Rxe6 {[%clk 0:00:06]} 43. Rd2+ {[%clk 0:00:05]}  Ke7 {[%clk 0:00:05]} 44. Kh4 {[%clk 0:00:06]}  Re5 {[%clk 0:00:05]} 45. Rc2 {[%clk 0:00:06]}  a5 {[%clk 0:00:06]} 46. g3 {[%clk 0:00:06]}  a4 {[%clk 0:00:05]} 47. Rc7+ {[%clk 0:00:06]}  Kd6 {[%clk 0:00:05]} 48. Ra7 {[%clk 0:00:05]}  Kc6 {[%clk 0:00:05]} 49. Rh7 {[%clk 0:00:05]}  b4 {[%clk 0:00:05]} 50. Ra7 {[%clk 0:00:05]}  Kb5 {[%clk 0:00:05]} 51. Rb7+ {[%clk 0:00:05]}  Kc4 {[%clk 0:00:05]} 52. Ra7 {[%clk 0:00:05]}  Kb5 {[%clk 0:00:03]} 53. Rb7+ {[%clk 0:00:06]}  Ka5 {[%clk 0:00:03]} 54. Ra7+ {[%clk 0:00:06]}  Kb5 {[%clk 0:00:03]} 1/2-1/2


[Site "https://www.chess.com"]

[Event "Titled Tuesday Blitz April 4 Early 2023"]
[White "Thecourseoisildur"]
[Black "Zampronha, Wladimir Camilo"]
[BlackFideId "2103087"]
[WhiteElo "2498"]
[BlackElo "2176"]
[Result "1-0"]
[Round "05"]
[TimeControl "180+2"]
[Date "2023.04.04"]
[WhiteClock "0:00:54"]
[BlackClock "0:00:12"]

1. e4 {[%clk 0:02:43]}  c5 {[%clk 0:03:00]} 2. Nf3 {[%clk 0:02:42]}  e6 {[%clk 0:03:00]} 3. d4 {[%clk 0:02:41]}  cxd4 {[%clk 0:03:01]} 4. Nxd4 {[%clk 0:02:42]}  Nc6 {[%clk 0:03:02]} 5. Nc3 {[%clk 0:02:41]}  Qc7 {[%clk 0:03:02]} 6. Be2 {[%clk 0:02:41]}  a6 {[%clk 0:03:02]} 7. O-O {[%clk 0:02:41]}  Nf6 {[%clk 0:03:03]} 8. Be3 {[%clk 0:02:42]}  Bb4 {[%clk 0:03:02]} 9. Nxc6 {[%clk 0:02:42]}  bxc6 {[%clk 0:03:01]} 10. Qd4 {[%clk 0:02:42]}  c5 {[%clk 0:02:58]} 11. Qc4 {[%clk 0:02:42]}  Bb7 {[%clk 0:02:46]} 12. a3 {[%clk 0:02:39]}  d5 {[%clk 0:02:37]} 13. exd5 {[%clk 0:02:36]}  exd5 {[%clk 0:02:38]} 14. Qb3 {[%clk 0:01:59]}  Bxc3 {[%clk 0:02:31]} 15. Qxc3 {[%clk 0:01:58]}  Rc8 {[%clk 0:02:16]} 16. Bg5 {[%clk 0:01:50]}  d4 {[%clk 0:02:06]} 17. Qh3 {[%clk 0:01:46]}  Ne4 {[%clk 0:01:55]} 18. Bh4 {[%clk 0:01:42]}  O-O {[%clk 0:01:53]} 19. f3 {[%clk 0:01:34]}  Nd6 {[%clk 0:01:38]} 20. Bd3 {[%clk 0:01:33]}  f5 {[%clk 0:01:11]} 21. Rfe1 {[%clk 0:01:28]}  Rf7 {[%clk 0:00:56]} 22. b3 {[%clk 0:01:23]}  Bd5 {[%clk 0:00:53]} 23. Bg3 {[%clk 0:01:19]}  Rcf8 {[%clk 0:00:47]} 24. Re5 {[%clk 0:01:14]}  Bb7 {[%clk 0:00:39]} 25. Rae1 {[%clk 0:01:08]}  Kh8 {[%clk 0:00:33]} 26. Re6 {[%clk 0:01:03]}  Rd8 {[%clk 0:00:16]} 27. Bxf5 {[%clk 0:00:55]}  Bc8 {[%clk 0:00:12]} 28. Qxh7# {[%clk 0:00:54]} 1-0


[Site "https://www.chess.com"]